Cogmind - Beta 15 @@@ ROGUE MODE // 2025.06.11 @ 16:22:31 Player: Singularius Result: Destroyed by M1-KCL(E) with Overtuned Barrage Gun Performance ------------- Evolutions (0) 0 Regions Visited (4) 800 Robots Destroyed (32) 160 Value Destroyed (693) 693 Prototype IDs (2) 40 Alien Tech Used (0) 0 Bonus (300) 300 TOTAL SCORE: 1993 Bonus ------- Registered with UFD 300 Cogmind --------- Core Integrity 0/250 Matter 231/300 Energy 125/125 System Corruption 10% Temperature Cool (12) Movement Walking (260) Ox2 Location -8/Scraptown Parts ------- > --- POWER (1) -------- Light Ion Engine > --- PROPULSION (2) --- Aluminum Leg > --- UTILITY (2) ------ Large Storage Unit Experimental Sensor Array > --- WEAPON (2) ------- Assault Cannon > --- INVENTORY (15) --- Light Ion Engine Aluminum Leg Aluminum Leg Signal Interpreter Improved Terrain Scanner Makeshift Light Armor Plating Thief Drone Bay (3/3) Riot Gun Plasma Cannon Light Assault Rifle High-powered Shotgun Battle Cannon Grenade Launcher Rocket Launcher Multitool Peak State ------------ > --- POWER ------------ Light Ion Engine > --- PROPULSION ------- Aluminum Leg Aluminum Leg > --- UTILITY ---------- Large Storage Unit Experimental Sensor Array > --- WEAPON ----------- Heavy Machine Gun Assault Cannon > --- INVENTORY -------- Light Ion Engine Aluminum Leg Aluminum Leg Signal Interpreter Improved Terrain Scanner Makeshift Light Armor Plating Thief Drone Bay Riot Gun Heavy Particle Cannon Light Assault Rifle High-powered Shotgun Battle Cannon Grenade Launcher Rocket Launcher Multitool [Rating: 24] Favorites ----------- Power Light Ion Engine Engine Light Ion Engine Propulsion Aluminum Leg Leg Aluminum Leg Wheel Wheel Utility Large Storage Unit Device Experimental Sensor Array Storage Large Storage Unit Weapon Light Assault Rifle Energy Gun Medium Laser Energy Cannon Heavy Particle Cannon Ballistic Gun Light Assault Rifle Ballistic Cannon Assault Cannon Launcher Grenade Launcher Build | -11 -10 -10 -10 -8 ------- Run | Yrd Mat Min Sub Scr Slots Evolved . | . . . . . Power . | . . . . . Propulsion . | . . . . . Utility . | . . . . . Weapon . | . . . . . Parts Attached 27 | 7 6 10 3 1 Power 4 | 1 1 1 1 . Engine 4 | 1 1 1 1 . Core . | . . . . . Reactor . | . . . . . Propulsion 5 | 2 1 1 1 . Treads . | . . . . . Leg 3 | . 1 1 1 . Wheel 2 | 2 . . . . Hover . | . . . . . Flight . | . . . . . Utility 7 | 2 2 3 . . Device 4 | 1 . 3 . . Storage 3 | 1 2 . . . Processor . | . . . . . Hackware . | . . . . . Protection . | . . . . . Artifact . | . . . . . Weapon 11 | 2 2 5 1 1 Energy Gun 2 | 2 . . . . Energy Cannon 1 | . . 1 . . Ballistic Gun 5 | . 1 2 1 1 Ballistic Cannon 2 | . . 2 . . Launcher 1 | . 1 . . . Special Weapon . | . . . . . Impact Weapon . | . . . . . Slashing Weapon . | . . . . . Piercing Weapon . | . . . . . Special Melee Weapon . | . . . . . Unidentified Prototypes 2 | . . 2 . . Corrupted Parts 3 | . . 3 . . System Corruption 10 | . . 10 . . Parts Lost 10 | . 3 4 1 2 Power 2 | . 1 1 . . Propulsion 4 | . 1 1 1 1 Utility 1 | . 1 . . . Weapon 3 | . . 2 . 1 Highest Loss Streak 3 | . 1 3 1 2 To Critical Strikes 1 | . . 1 . . Average Backups 12 | 2 8 10 14 15 Power . | . 1 . . 1 Propulsion 2 | 1 2 3 2 2 Utility 2 | . 1 2 4 4 Weapon 5 | . 3 5 7 7 Tool/Special . | . . . . . Unused Backups 16 | . 1 . 4 11 Power 1 | . . . . 1 Propulsion 3 | . . . 1 2 Utility 4 | . 1 . 1 2 Weapon 7 | . . . 2 5 Tool/Special 1 | . . . . 1 Average Slot Usage (%) 99 | . 99 99 100 99 Engine 13 | . 14 13 14 14 Leg 23 | . 3 27 28 27 Wheel 4 | . 24 . . . Device 13 | . 13 13 14 14 Storage 14 | . 14 14 14 14 Energy Gun 3 | . 19 . . . Ballistic Gun 12 | . 8 14 14 14 Ballistic Cannon 11 | . . 12 13 14 Peak Build Rating 24 | 7 8 19 22 24 Average Rating 15 | 5 7 11 20 23 On Entrance 10 | . 7 7 19 21 Naked Turns . | . . . . . Heaviest Build 35 | 14 30 30 35 34 Greatest Support 26 | 26 26 20 20 20 Greatest Overweight (x) 3 | . 2 2 1 3 Average Overweight (x) . | . . 1 1 1 Largest Inventory Capacity 15 | 8 15 15 15 15 Average Capacity 14 | 7 10 15 15 15 Most Carried 15 | 5 11 15 15 15 Average Carried 12 | 2 8 10 14 14 Final Capacity 15 | 8 15 15 15 15 Final Carried 15 | 5 10 15 15 15 Class Distribution -------------------- 100% | Mutant Dominant Class ---------------- Mutant | -10/Materials Mutant | -10/Mines Mutant | -10/Subcaves Mutant | -8/Scraptown Resources | -11 -10 -10 -10 -8 ----------- Run | Yrd Mat Min Sub Scr Matter Collected 863 | 252 102 213 255 41 Remotely . | . . . . . Salvage Created 723 | 48 374 206 95 . Parts 57 | 8 23 14 12 . Haulers Intercepted 1 | . 1 . . . Recyclers Shooed . | . . . . . Parts Field Recycled . | . . . . . Retrieved Matter . | . . . . . Parts Self-Destructed 2 | . . . 2 . Prevented . | . . . . . Kills | -11 -10 -10 -10 -8 ------- Run | Yrd Mat Min Sub Scr Combat Hostiles Destroyed 23 | . 12 7 4 . Guns 11 | . 10 . 1 . Cannons 5 | . . 2 3 . AOE 7 | . 2 5 . . Classes Destroyed 7 | 1 3 2 1 . Builder 3 | . . 3 . . Tunneler 4 | 3 . 1 . . Hauler 1 | . 1 . . . Recycler 1 | . . 1 . . Swarmer 9 | . 6 3 . . Grunt 10 | . 6 4 . . Subdweller 4 | . . . 4 . Best Kill Streak 7 | 3 3 7 1 . Combat Bots Only 5 | . 3 5 1 . Max Kills in Single Turn 2 | 1 2 2 1 . Gunslinging . | . . . . . Exploded 2 | . 2 1 . . Melee . | . . . . . Uniques/NPCs Destroyed . | . . . . . Combat | -11 -10 -10 -10 -8 -------- Run | Yrd Mat Min Sub Scr Hostile Shots Fired 133 | . 54 29 20 30 Missed 43 | . 15 8 7 13 Hits 90 | . 39 21 13 17 Projectile 90 | . 39 21 13 17 Critical Strikes 1 | . . 1 . . Damage Taken 1295 | . 387 324 282 302 Core 252 | . 75 27 90 60 Absorbed by Shields . | . . . . . Core Remaining (%) 100 | 100 . . . . Volleys Fired 88 | 4 47 19 18 . Largest 2 | 2 2 2 2 . Hottest 90 | 90 90 70 67 . Shots Fired 167 | 8 93 29 36 1 Gun 131 | 8 92 14 16 1 Cannon 25 | . . 7 18 . Launcher 11 | . 1 8 2 . Special . | . . . . . Kinetic 80 | . 27 18 34 1 Thermal 76 | 8 65 3 . . Explosive 11 | . 1 8 2 . Electromagnetic . | . . . . . Robot Hit Streak 9 | 4 6 8 9 . Robot Miss Streak 5 | 1 5 3 3 1 Penetration Max . | . . . . . Secondary Targets 2 | . 2 . . . Max Gunslinging Chain 1 | . 1 . . . Shots Hit Robots 96 | 4 52 16 24 . Core Hits 51 | 3 23 17 8 . Critical Kills . | . . . . . Critical Parts Destroyed . | . . . . . Critical Strikes 3 | . 3 . . . Burn 3 | . 3 . . . Melee Attacks . | . . . . . Impact . | . . . . . Slashing . | . . . . . Piercing . | . . . . . Sneak Attacks . | . . . . . Combat Hostiles . | . . . . . Follow-up Attacks . | . . . . . Damage Inflicted 1918 | 49 659 784 426 . Guns 739 | 49 587 24 79 . Cannons 455 | . . 108 347 . Explosions 724 | . 72 652 . . Melee . | . . . . . Ramming . | . . . . . Kinetic 657 | . 111 120 426 . Thermal 537 | 49 476 12 . . Explosive 724 | . 72 652 . . Electromagnetic . | . . . . . Impact . | . . . . . Slashing . | . . . . . Piercing . | . . . . . Highest Corruption 10 | . . 10 10 10 Average Corruption 9 | . . 2 10 10 Corruption Purged . | . . . . . Corruption Blocked . | . . . . . Effects 72 | . . . 46 26 Message Errors 18 | . . . 12 6 Matter Fused 19 | . . . 11 8 Heat Flow Errors 9 | . . . 5 4 Energy Discharges 11 | . . . 7 4 Data Loss (minor) 7 | . . . 6 1 Data Loss (major) 3 | . . . 2 1 Misfires 3 | . . . 2 1 Alerts 2 | . . . 1 1 Overload Shots . | . . . . . Overflow Damage 24 | . . 24 . . Projectiles . | . . . . . Explosions 24 | . . 24 . . Melee . | . . . . . Knockbacks 2 | . . 1 1 . Impact . | . . . . . Kinetic 2 | . . 1 1 . Secondary . | . . . . . Self-Inflicted Damage 43 | . 16 27 . . Shots 2 | . 1 1 . . Rammed . | . . . . . Targets Rammed . | . . . . . Kicked . | . . . . . Crushed . | . . . . . Highest Temperature 327 | 80 327 50 248 243 Average Temperature 75 | 39 75 20 109 93 Received Heat Transfer 327 | . 114 60 33 120 Effects 1 | . 1 . . . Energy Bleed 1 | . 1 . . . Siege Activations . | . . . . . Martial Activations . | . . . . . Shielding Activations . | . . . . . Robots Disrupted . | . . . . . Combat Hostiles . | . . . . . Robots Corrupted . | . . . . . Combat Hostiles . | . . . . . Parts Fried . | . . . . . Impact Corruptions . | . . . . . Robots Melted . | . . . . . Combat Hostiles . | . . . . . Parts Melted 4 | . 4 . . . Heat Transferred 1706 | 136 1533 37 . . Parts Sabotaged . | . . . . . Parts Stolen . | . . . . . Parts Stripped . | . . . . . Power Chain Reactions . | . . . . . Alert | -11 -10 -10 -10 -8 ------- Run | Yrd Mat Min Sub Scr Maximum Alert Level . | . . . . . Low Security (%) 100 | 100 100 100 . . Level 1 . | . . . . . Level 2 . | . . . . . Level 3 . | . . . . . Level 4 . | . . . . . Level 5 . | . . . . . High Security . | . . . . . Max Security . | . . . . . Peak Influence 99 | 10 92 99 . . Initial 32 | . . 32 . . Average 20 | 2 32 15 . . Influence Increases 598 | 15 358 225 . . Destroy 0b10 Robot/C 380 | . 240 140 . . Destroy 0b10 Robot/NC 45 | 15 5 25 . . Destroy Leader 72 | . 42 30 . . Successful Hack 7 | . 7 . . . Destroy Structure 34 | . 4 30 . . Partial Spotted 15 | . 15 . . . Lose Combat Pursuer 45 | . 45 . . . Influence Decreases 598 | 15 274 309 . . Entered New Map 52 | . . 52 . . Time Decay 476 | 15 244 217 . . Lost Part 70 | . 30 40 . . Squads Dispatched 2 | . 2 . . . Investigation . | . . . . . Extermination . | . . . . . Reinforcement 2 | . 2 . . . Assault . | . . . . . Garrison . | . . . . . Intercept . | . . . . . Searches Triggered . | . . . . . Construction Impeded . | . . . . . Haulers Reinforced . | . . . . . Active Scanning Responses . | . . . . . Cargo Convoy Interrupts . | . . . . . Stealth | -11 -10 -10 -10 -8 --------- Run | Yrd Mat Min Sub Scr Distress Signals 3 | . 3 . . . Communications Jammed . | . . . . . Distress Signals . | . . . . . Times Spotted 42 | . 22 7 5 8 Peak Tracking Total 10 | . 4 3 3 10 Tactical Retreats 2 | . 2 . . . Traps | -11 -10 -10 -10 -8 ------- Run | Yrd Mat Min Sub Scr Traps Triggered 1 | . . 1 . . Indirectly . | . . . . . Trap Hack Attempts . | . . . . . Triggered . | . . . . . Disarmed . | . . . . . Reprogrammed . | . . . . . Reused . | . . . . . Traps Extracted . | . . . . . Installed . | . . . . . Triggered . | . . . . . Machines | -11 -10 -10 -10 -8 ---------- Run | Yrd Mat Min Sub Scr Machines Disabled . | . . . . . Max in Single Turn . | . . . . . Machines Repaired . | . . . . . Machines Dismantled . | . . . . . Machines Sabotaged . | . . . . . Overloaded Fab Kills . | . . . . . Hacking | -11 -10 -10 -10 -8 --------- Run | Yrd Mat Min Sub Scr Machines Accessed 6 | . 3 2 . 1 Terminals 3 | . 3 . . . Fabricators . | . . . . . Repair Stations . | . . . . . Recycling Units . | . . . . . Scanalyzers . | . . . . . Garrison Access . | . . . . . Total Hacks 12 | . 6 2 . 4 Successful 9 | . 3 2 . 4 Failed 3 | . 3 . . . Catastrophic 2 | . 2 . . . Database Lockouts . | . . . . . Manual 4 | . 4 . . . Terminals 6 | . 6 . . . Fabricators . | . . . . . Repair Stations . | . . . . . Recycling Units . | . . . . . Scanalyzers . | . . . . . Garrison Access . | . . . . . Terminal Hacks 9 | . 3 2 . 4 Record 4 | . . . . 4 Part Schematic 1 | . 1 . . . Open Door 2 | . . 2 . . Locate Traps 2 | . 2 . . . Fabricator Hacks . | . . . . . Repair Station Hacks . | . . . . . Recycling Unit Hacks . | . . . . . Scanalyzer . | . . . . . Garrison Access Hacks . | . . . . . Unauthorized Hacks . | . . . . . Terminals . | . . . . . Fabricators . | . . . . . Repair Stations . | . . . . . Recycling Units . | . . . . . Scanalyzers . | . . . . . Garrison Access . | . . . . . Data Cores Recovered . | . . . . . Used . | . . . . . Hacking Detections 3 | . 3 . . . Full Trace Events . | . . . . . Feedback Events . | . . . . . Feedback Blocked . | . . . . . Robot Schematics Acquired . | . . . . . Robots Built . | . . . . . Authchips . | . . . . . Time . | . . . . . Total Robot Build Rating . | . . . . . Part Schematics Acquired 1 | . 1 . . . Parts Built . | . . . . . Authchips . | . . . . . Time . | . . . . . Total Part Build Rating . | . . . . . Parts Repaired . | . . . . . Time . | . . . . . Parts Recycled . | . . . . . Recycled Matter . | . . . . . Retrieved Matter . | . . . . . Retrieved Components . | . . . . . Parts Scanalyzed . | . . . . . Part Schematics Acquired . | . . . . . Parts Damaged . | . . . . . Bothacking | -11 -10 -10 -10 -8 ------------ Run | Yrd Mat Min Sub Scr Used RIF Installer . | . . . . . Robots Hacked . | . . . . . Non-combat . | . . . . . Combat . | . . . . . Robot Hacks Applied . | . . . . . Relay Couplers Released . | . . . . . Fabnet Peak Effective % . | . . . . . Robots Rewired . | . . . . . Allies Hacked . | . . . . . Hacks Repelled . | . . . . . Allies | -11 -10 -10 -10 -8 -------- Run | Yrd Mat Min Sub Scr Total Allies . | . . . . . Largest Group . | . . . . . Highest-Rated Group . | . . . . . Highest-Rated Ally . | . . . . . Total Orders . | . . . . . Ally Attacks . | . . . . . Total Damage . | . . . . . Kills . | . . . . . Allies Corrupted . | . . . . . Allies Melted . | . . . . . Intel | -11 -10 -10 -10 -8 ------- Run | Yrd Mat Min Sub Scr Active Infowar (turns) 4067 | 18 711 1317 1300 721 Sensors 2242 | . . 221 1300 721 Terrain 1096 | . . 1096 . . Seismic 729 | 18 711 . . . Robot Analysis Total . | . . . . . Derelict Logs Recovered 2 | . . 1 1 . Drone Launches . | . . . . . Drone Recoveries . | . . . . . Exploration | -11 -10 -10 -10 -8 ------------- Run | Yrd Mat Min Sub Scr Turns Passed 4172 | 84 725 1342 1300 721 Spaces Moved 2222 | 58 499 648 642 375 Core 1 | 1 . . . . Treads . | . . . . . Legs 1664 | . . 647 642 375 Wheels 557 | 57 499 1 . . Hover . | . . . . . Flight . | . . . . . Fastest Speed 50 | 50 90 110 190 190 Average Speed 165 | 89 94 189 190 190 Slowest Speed 330 | 100 110 190 190 330 Overloaded Moves . | . . . . . Propulsion Burnouts . | . . . . . Robots Hopped . | . . . . . Potential Cave-ins . | . . . . . Cave-ins Triggered . | . . . . . Exploration Rate (%) 48 | 4 80 97 28 31 Regions Visited 4 Branch Regions 3 Pre-discovered Areas . | . . . . . Known Exits Taken . | . . . . . Unknown Exits Taken 4 | 1 1 1 1 . Scrap Searched 8 | . . 3 4 1 Spaces Dug . | . . . . . Terrain Destroyed 50 | . 2 43 5 . Melee . | . . . . . Projectile . | . . . . . AOE 50 | . 2 43 5 . Terrain Rammed . | . . . . . Walls Destroyed . | . . . . . Machines Disabled . | . . . . . Actions | -11 -10 -10 -10 -8 --------- Run | Yrd Mat Min Sub Scr Total 2552 | 78 668 729 696 381 Wait 163 | 5 104 38 14 2 Move 2218 | 57 498 647 641 375 Hop . | . . . . . Pick Up 33 | 5 9 10 8 1 Fast Attach 8 | 7 . . . 1 Attach 9 | . 2 5 2 . Detach . | . . . . . Swap 18 | . 4 10 4 . Drop 15 | . 4 . 9 2 Fire 88 | 4 47 19 18 . Melee . | . . . . . Ram . | . . . . . Kick . | . . . . . Crush . | . . . . . Escape Stasis . | . . . . . Rewire . | . . . . . Trap . | . . . . . Miscellaneous . | . . . . . Route ------- -11/Scrapyard -10/Materials (discovered 3 exits: [*Mat] / *Min x2) -10/Mines (discovered 2 exits: [*Mat] / [*Sub]) -10/Subcaves -8/Scraptown History --------- Turn | Location | Event 22 | -11/Scrapyard | Discovered new exit (range 16) 85 | -11/Scrapyard | Entered Materials 179 | -10/Materials | Discovered new exit (range 16) 316 | -10/Materials | Build established: Mutant 466 | -10/Materials | Discovered new exit (range 6) 568 | -10/Materials | Discovered new exit (range 10) 810 | -10/Materials | Entered Mines 859 | -10/Mines | Lost 3 parts (1n1u1w) 1127 | -10/Mines | Received a Rocket Launcher from a helpful Derelict 1289 | -10/Mines | Learned Materials security intel 1307 | -10/Mines | Found the Drone Emporium 1315 | -10/Mines | Found Prototype Device 1389 | -10/Mines | Discovered new exit (range 5) 1640 | -10/Mines | Met a Derelict who couldn't figure out how to use a Trap Extractor 1881 | -10/Mines | Found a damaged Exp. Sensor Array with a note attached 1885 | -10/Mines | Found Prototype Device 1930 | -10/Mines | Identified Thief Drone Bay 1931 | -10/Mines | Identified Exp. Sensor Array 1991 | -10/Mines | Discovered new exit (range 6) 2151 | -10/Mines | System corruption reached 10% 2152 | -10/Mines | Entered Subcaves 2153 | -10/Subcaves | Approached by a straggling Scientist 2290 | -10/Subcaves | Shifting Twisted Machinery released Sub. Power Source 2488 | -10/Subcaves | Learned Materials garrison access intel 2543 | -10/Subcaves | Core integrity fell below 50% 2760 | -10/Subcaves | Disturbed a concealed Subdweller 3022 | -10/Subcaves | Ambushed by angry Subdweller bent on revenge 3434 | -10/Subcaves | Scientist uncovered a shortcut to Scraptown 3452 | -10/Subcaves | Entered Scraptown 3722 | -8/Scraptown | Visited Comm Corps 3815 | -8/Scraptown | Visited UFD Registry 3815 | -8/Scraptown | Registered with UFD as "Microback" 3842 | -8/Scraptown | Visited Artisan Demo Area 3942 | -8/Scraptown | Visited The Evicted 4022 | -8/Scraptown | Visited Symbiants 4162 | -8/Scraptown | Attacked by Scraptown defenders 4169 | -8/Scraptown | Core integrity fell below 20% 4173 | -8/Scraptown | Destroyed by M1-KCL(E) with Overtuned Barrage Gun Last Messages --------------- than a strictly top-down approach to governance. We know the drawbacks of that one. System corrupted: Heat flow error (+263). System corrupted: Matter fused (-5). WX-6HB(c): Hi Microback! Have any Subdweller tech on you? Just step into our machine here for a quick scan and we'll reward you with valuable knowledge for your troubles. System corrupted: Matter fused (-5). System corrupted: FCS attempts to trigger Hvy. Machine Gun. System corrupted: Hvy. Machine Gun misfires. ANNOUNCEMENT: Intruder alert! Defend Scraptown! Aluminum Leg destroyed. Hvy. Machine Gun destroyed. 6I-3N6(g) suffers critical hit (Destroy). 6I-3N6(g) destroyed. F1-K55(j) heat damages Ovr. Titanium Leg. Map ----- +----------------------------------------------------+ | ?????? ????????????????????????????????????? | | ???????# ????????????????????????????????????? | | ????????# #????????????????????????????????????? | | ???#????# #########????????????????????????????? | | ???? ??# """"""""#????????????????????????????? | | ??### ### " ""#????????????????????????????? | | ??#"" """ "#????????????????????????????? | | ??#" """ " ""#????????????????????????????? | | ??#" " """"""""#????????????????????????????? | | ??#" ##"""####?????############???????????? | | ??#" "" " ###############""""""""""#???????????? | | ??#" " #""""""""""""##""""" """"#???????????? | | ??#"""""" #"""""X""""""##" """ """#???????????? | | ??####### #"" " " ""##"" " ""#???????????? | | ????????# #"" ""##" ""#???????????? | | ######### #"" ""##"" " "#???????????? | | #"" ""##"" " ""#???????????? | | #"" ""##"" ""#???????????? | | ######### #" "##" " """#???????????? | | ???????# # ##"" ""#???????????? | | ??????### ###g################## ####??????????? | | ??????# E g *% E #??????????? | | ??????# zjz #??????????? | | ??????# x #??????????? | | ??????# #??????????? | | ??????# @ j #??????????? | | ??????# ###########;##### #??????????? | | ??????# # # #??????????? | | ??????# # " # #??????????? | | ??????# # """ #? #??????????? | | ????? # """"" #??????????? | | ????| # # """"" # #??????????? | | ?? # # """"""" # ###?#??????? | | ??###?# # """ """? # ""#"#??????? | | ??????# # """ """ # """"#??????? | | ??????# # """ """ # ? ""###??????? | | ??????#? # """ """ # ###????????? | | ?????????? ?# """ """ # ########???? | | ????????????# """" """" # | | ????????????# """" """" # | | ????????????# """ """ # | | ????????????# # | | ????????????################# ?? | | ?????????????? | | ?????????????? | | ?????????????? | | ??????????????? | | ??????????????? | | ??????????????? #""""#" ? | | ??????????????? #???????? | +----------------------------------------------------+ Best States ------------- Heat Dissipation 25 Energy Generation 15 Energy Capacity 250 Matter Stores 300 Matter Capacity 300 Sight Range 16 Robot Scan Range 20 Terrain Scan Range 16 Terrain Scan Density 10 Evasion (%) 42 Item Schematics ----------------- Lrg. Storage Unit | -10/Materials | Hacked Robot Schematics ------------------ None Fabricated ------------ Nothing Repaired ---------- Nothing Alien Tech Used ----------------- None Achievements -------------- None Challenges ------------ None Game ------ Seed GyrokineticRefineryTrident Manual? 0 Play Time 00:48:55 Cumulative 51.6 hours Start 2025.06.11 @ 15:22:58 End 2025.06.11 @ 16:22:31 Sessions 1 Manual Loads 0 Difficulty Rogue Special Mode None Game No. 42 Rogue 42 Adventurer 0 Explorer 0 Win Type - Total 0 Types 0/0/0/0/0/0/0/0/0/0 Lore% 21 Gallery% 28 Achievement% 23 Wizard Run 0 Options --------- Layout 1 ASCII 0 Keyboard 0 Movement Numpad Keybinds 0 Fullscreen 1 Font 24/Smallcaps Map View 50x35 Zoom Use 0% Tactical HUD 0 Map Filters NONE Filters NONE Steam 1 RUN: 783a155e-eb5c-4a37-85f1-01dad6058c47